bitfinex-derivatives/quotes_SOLF0:USTF0_20250731
["timestamp","ask_amount","ask_price","bid_price","bid_amount"]
[1754006044793,3.22,172.24,172.17,5.44983159]
[1754006045898,3.22,172.23,172.21,5.44983159]
[1754006046106,5.8054,172.28,172.22,5.8069]
[1754006046400,3.22,172.27,172.21,5.44983159]
[1754006047198,3.22,172.27,172.23,5.8067]
[1754006047598,3.22,172.27,172.21,5.44983159]
[1754006048095,3.22,172.3,172.21,5.44983159]
[1754006048796,5.8048,172.29,172.24,5.8062]
[1754006048996,3.22,172.28,172.24,5.8062]
[1754006049191,3.22,172.28,172.21,5.44983159]
[1754006049393,3.22,172.28,172.24,5.8062]
[1754006050405,3.22,172.28,172.25,5.806]
[1754006051306,3.22,172.28,172.26,5.8057]
[1754006051604,9.0251,172.28,172.21,5.44983159]
[1754006051911,3.22,172.28,172.21,5.44983159]
[1754006052599,3.22,172.28,172.26,5.8058]
[1754006052806,3.22,172.32,172.25,5.44983159]
[1754006053103,5.8044,172.3,172.26,5.8057]
[1754006053412,3.22,172.29,172.26,5.8057]
[1754006054208,3.22,172.29,172.27,5.8054]
[1754006054708,3.22,172.3,172.28,5.805]
[1754006055507,3.22,172.3,172.25,5.44983159]
[1754006055813,11.6033,172.39,172.27,5.44983159]
[1754006055814,3.22,172.34,172.27,5.44983159]
[1754006056014,3.22,172.34,172.29,5.8046]
[1754006056308,3.22,172.34,172.27,5.44983159]
[1754006056508,5.8037,172.33,172.29,5.8045]
[1754006056707,3.22,172.32,172.29,5.8045]
[1754006057215,3.22,172.31,172.27,5.44983159]
[1754006057612,3.22,172.3,172.27,5.44983159]
[1754006057912,3.22,172.3,172.29,5.8047]
[1754006058415,3.22,172.31,172.25,5.44983159]
[1754006058613,8.66983159,172.31,172.21,5.44983159]
[1754006059004,3.22,172.3,172.21,5.44983159]
[1754006059409,3.22,172.26,172.18,5.8083]
[1754006059613,3.22,172.24,172.15,5.44983159]
[1754006060110,5.8071,172.23,172.18,5.8083]
[1754006060417,3.22,172.22,172.18,5.8083]
[1754006060609,3.22,172.22,172.15,5.44983159]
[1754006060915,5.8071,172.22,172.15,5.44983159]
[1754006061102,5.44983159,172.27,172.17,5.44983159]
[1754006061311,3.22,172.24,172.11,431.54]
[1754006061614,3.22,172.23,172.19,5.44983159]
[1754006061810,3.22,172.25,172.21,5.44983159]
[1754006062012,3.22,172.27,172.23,5.44983159]
[1754006062214,3.22,172.33,172.23,5.44983159]
[1754006062408,3.22,172.27,172.25,5.44983159]
[1754006063211,5.44983159,172.34,172.25,5.44983159]
[1754006063415,3.22,172.26,172.25,5.44983159]
[1754006063612,3.22,172.27,172.21,5.44983159]
[1754006063915,3.22,172.27,172.14,108.94]
[1754006063916,3.22,172.27,172.19,5.44983159]
[1754006064311,3.22,172.24,172.19,5.44983159]
[1754006064909,9.0266,172.24,172.2,5.8077]
[1754006065115,3.22,172.23,172.2,5.8077]
[1754006065317,3.22,172.19,172.17,5.44983159]
[1754006065710,5.807,172.23,172.18,5.8082]
[1754006065910,3.22,172.2,172.18,5.8082]
[1754006066119,3.22,172.2,172.17,5.44983159]
[1754006066318,3.22,172.2,172.18,5.8085]
[1754006066511,3.22,172.2,172.17,5.44983159]
[1754006066816,3.22,172.27,172.17,5.44983159]
[1754006067112,10.21550159,172.28,172.14,108.94]
[1754006067113,3.22,172.25,172.19,5.44983159]
[1754006067310,3.22,172.24,172.2,5.8077]
[1754006067916,3.22,172.22,172.19,5.44983159]
[1754006068116,3.22,172.26,172.21,5.44983159]
[1754006068313,3.18,172.25,172.22,5.8069]
[1754006068512,3.18,172.24,172.22,5.8069]
[1754006068914,3.18,172.27,172.22,5.8069]
[1754006069516,3.18,172.27,172.23,5.8066]
[1754006069914,3.18,172.25,172.21,5.44983159]
[1754006070113,3.18,172.25,172.21,5.8073]
[1754006070319,3.18,172.25,172.19,5.44983159]
[1754006070721,3.18,172.25,172.22,5.8071]
[1754006071019,3.18,172.24,172.21,5.44983159]
[1754006071314,3.18,172.28,172.23,5.44983159]
[1754006072614,3.18,172.27,172.24,5.8061]
[1754006073014,3.18,172.27,172.23,5.44983159]
[1754006073321,3.18,172.27,172.24,5.8064]
[1754006073721,3.18,172.27,172.23,5.44983159]
[1754006074020,3.18,172.27,172.24,5.8064]
[1754006074216,5.44983159,172.32,172.23,5.44983159]
[1754006074422,3.18,172.3,172.25,5.8059]
[1754006074721,3.18,172.28,172.25,5.8059]
[1754006075320,3.18,172.27,172.25,5.8059]
[1754006076022,3.18,172.26,172.25,5.8059]
[1754006076619,10.21550159,172.32,172.25,5.8059]
[1754006076820,3.18,172.3,172.21,5.44983159]
[1754006077122,3.18,172.28,172.21,5.44983159]
[1754006077624,3.18,172.28,172.23,5.44983159]
[1754006077825,3.18,172.28,172.25,5.44983159]
[1754006078016,5.8039,172.32,172.27,5.44983159]
[1754006078324,3.18,172.31,172.27,5.44983159]
[1754006078522,8.9843,172.31,172.27,5.44983159]
[1754006078726,3.18,172.29,172.27,5.44983159]
[1754006078923,10.21550159,172.37,172.27,5.44983159]
[1754006079125,4.10488907,172.36,172.28,5.8049]
[1754006079325,4.10488907,172.35,172.27,5.44983159]
[1754006079517,5.8043,172.31,172.27,11.25513159]
[1754006079724,3.18,172.3,172.27,11.25513159]
[1754006079918,3.18,172.3,172.21,5.44983159]
[1754006080228,5.44983159,172.31,172.16,52.6182]
[1754006080229,3.18,172.26,172.16,52.6182]
[1754006080419,3.18,172.26,172.2,5.44983159]
[1754006081228,3.18,172.24,172.21,5.8074]
[1754006081622,3.18,172.24,172.2,5.44983159]
[1754006081829,5.44983159,172.29,172.2,5.44983159]
[1754006082022,3.18,172.21,172.2,5.44983159]
[1754006082226,3.18,172.21,172.2,11.25743159]
[1754006082528,3.18,172.23,172.2,5.44983159]
[1754006082823,3.18,172.22,172.2,11.25753159]
[1754006084134,3.18,172.21,172.19,11.25783159]
[1754006084327,3.18,172.23,172.19,5.44983159]
[1754006084527,3.18,172.22,172.19,5.44983159]
[1754006085425,5.44983159,172.29,172.19,5.44983159]
[1754006085730,3.18,172.27,172.2,5.8076]
[1754006085926,3.18,172.27,172.21,5.44983159]
[1754006086122,8.9855,172.27,172.22,5.8069]
[1754006086323,3.18,172.31,172.21,5.44983159]
[1754006086526,3.18,172.29,172.23,5.44983159]
[1754006086727,3.18,172.27,172.23,5.44983159]
[1754006087032,3.18,172.32,172.25,5.44983159]
[1754006087331,3.18,172.3,172.26,5.8056]
[1754006087933,5.8045,172.3,172.25,11.25583159]
[1754006088135,3.18,172.29,172.25,11.25583159]
[1754006088528,3.18,172.3,172.26,5.8057]
[1754006088930,10.21550159,172.35,172.27,5.8053]
[1754006089235,5.804,172.32,172.25,5.44983159]
[1754006089436,3.18,172.3,172.27,5.8051]
[1754006090231,3.18,172.3,172.28,5.8051]
[1754006091431,3.18,172.31,172.28,5.8051]
[1754006091635,3.18,172.3,172.29,5.8046]
[1754006092029,3.18,172.34,172.3,5.8041]
[1754006092230,4.76567,172.38,172.27,5.44983159]
[1754006092432,7.29817483,172.37,172.31,5.44983159]
[1754006092639,3.18,172.35,172.33,5.8034]
[1754006092837,3.18,172.34,172.31,5.44983159]
[1754006093232,3.18,172.34,172.32,5.8037]
[1754006093536,3.18,172.34,172.31,5.44983159]
[1754006093732,3.18,172.33,172.29,5.44983159]
[1754006093936,3.18,172.33,172.26,5.44983159]
[1754006094635,3.18,172.31,172.24,5.44983159]
[1754006094837,5.8045,172.3,172.24,5.44983159]
[1754006095137,5.44983159,172.35,172.24,5.44983159]
[1754006095439,3.18,172.27,172.24,5.44983159]
[1754006095640,3.18,172.3,172.17,21.27591443]
[1754006095838,3.18,172.3,172.24,5.44983159]
[1754006096539,3.18,172.3,172.26,5.8057]
[1754006096939,3.18,172.29,172.26,5.8057]
[1754006097339,5.8044,172.3,172.26,5.8057]
[1754006097538,3.18,172.27,172.25,5.806]
[1754006099139,3.27,172.34,172.24,11.25623159]
[1754006099340,3.27,172.28,172.24,11.25623159]
[1754006099541,3.27,172.28,172.2,5.44983159]
[1754006099941,3.27,172.24,172.2,5.44983159]
[1754006100241,3.27,172.24,172.2,5.8075]
[1754006100433,9.0765,172.24,172.2,5.8075]
[1754006100632,3.27,172.28,172.18,5.44983159]
[1754006100934,3.27,172.28,172.2,5.44983159]
[1754006101141,3.27,172.25,172.2,5.44983159]
[1754006102029,5.44983159,172.3,172.2,5.44983159]
[1754006102338,3.27,172.28,172.22,5.44983159]
[1754006102539,3.27,172.28,172.24,5.44983159]
[1754006103736,3.27,172.33,172.26,5.44983159]
[1754006103937,3.27,172.31,172.26,5.44983159]
[1754006104342,3.27,172.31,172.27,5.8053]
[1754006104536,3.27,172.3,172.27,5.8053]
[1754006104737,3.27,172.28,172.26,11.25543159]
[1754006105043,3.27,172.31,172.21,5.44983159]
[1754006105239,4.13912511,172.3,172.24,5.8063]
[1754006105538,3.27,172.26,172.24,5.8063]
[1754006106063,3.27,172.25,172.21,5.44983159]
[1754006106242,3.27,172.24,172.21,5.44983159]
[1754006106436,3.27,172.23,172.21,5.44983159]
[1754006106636,3.27,172.23,172.22,5.8071]
[1754006107739,108.84,172.41,172.21,5.44983159]
[1754006107740,3.27,172.31,172.21,5.44983159]
[1754006108042,3.27,172.27,172.23,5.44983159]
[1754006108238,3.27,172.27,172.24,5.8063]
[1754006108439,3.27,172.27,172.23,5.44983159]
[1754006108637,10.21550159,172.34,172.24,5.8063]
[1754006108849,3.27,172.25,172.24,5.8063]
[1754006111145,3.27,172.26,172.25,5.806]
[1754006111844,3.27,172.29,172.25,5.44983159]
[1754006112046,3.27,172.27,172.25,5.44983159]
[1754006112735,3.27,172.34,172.25,5.44983159]
[1754006112937,3.27,172.32,172.25,5.44983159]
[1754006113135,3.27,172.32,172.27,5.8052]
[1754006113338,5.8042,172.31,172.27,5.8052]
[1754006113545,3.27,172.3,172.27,5.8052]
[1754006114347,5.44983159,172.34,172.26,5.8056]
[1754006114547,3.27,172.32,172.26,5.8056]
[1754006114748,3.27,172.3,172.26,5.8056]
[1754006115143,3.27,172.3,172.27,5.8053]
[1754006115340,3.27,172.3,172.25,5.44983159]
[1754006115542,3.27,172.33,172.27,5.44983159]
[1754006115943,3.27,172.31,172.29,5.44983159]
[1754006116347,3.27,172.3,172.29,11.25453159]
[1754006116542,3.27,172.37,172.29,5.44983159]
[1754006116742,3.27,172.37,172.22,11.6141]
[1754006116743,3.27,172.35,172.32,3.66774409]
[1754006117144,3.27,172.34,172.33,5.8033]
[1754006117349,3.27,172.38,172.32,3.66774409]
[1754006117543,3.27,172.36,172.32,3.66774409]
[1754006117849,9.0724,172.36,172.32,9.47134409]
[1754006118049,3.27,172.35,172.32,9.47134409]
[1754006118749,5.8021,172.37,172.31,5.43335136]
[1754006118944,3.27,172.39,172.33,5.43335136]
[1754006119247,3.27,172.36,172.34,5.8029]
[1754006119448,3.27,172.35,172.34,5.8029]
[1754006119646,3.27,172.41,172.33,5.43335136]
[1754006119948,4.13741492,172.4,172.33,5.43335136]
[1754006120151,3.27,172.38,172.31,5.43335136]
[1754006120344,3.27,172.36,172.33,5.43335136]
[1754006120552,3.27,172.35,172.33,5.43335136]
[1754006121143,3.27,172.42,172.33,5.43335136]
[1754006121343,4.1337604,172.41,172.36,5.43335136]
[1754006121552,3.27,172.39,172.38,11.23495136]
[1754006122250,3.27,172.39,172.38,5.43335136]
[1754006122649,3.27,172.45,172.36,5.43335136]
[1754006122849,3.27,172.42,172.36,5.43335136]
[1754006123645,5.8009,172.41,172.36,5.43335136]
[1754006123952,3.27,172.4,172.36,5.43335136]
[1754006124152,9.0713,172.4,172.36,11.23545136]
[1754006124353,3.27,172.39,172.36,11.23545136]
[1754006124652,3.27,172.39,172.34,5.43335136]
[1754006125047,3.27,172.39,172.32,5.43335136]
[1754006125652,5.8018,172.38,172.35,5.8027]
[1754006125850,5.8018,172.38,172.29,108.76]
[1754006125851,3.27,172.38,172.34,5.43335136]
[1754006126052,3.27,172.37,172.34,5.43335136]
[1754006126247,3.27,172.37,172.35,5.8027]
[1754006126556,5.8014,172.39,172.35,5.8027]
[1754006126757,3.27,172.36,172.35,5.8027]
[1754006127546,3.27,172.38,172.35,5.8027]
[1754006127854,5.8018,172.38,172.34,11.23625136]
[1754006128051,3.27,172.36,172.34,11.23625136]
[1754006128244,5.8014,172.39,172.35,5.8027]
[1754006128445,3.28,172.38,172.34,5.43335136]
[1754006128655,3.28,172.36,172.34,5.43335136]
[1754006129051,3.28,172.39,172.34,5.43335136]
[1754006129351,3.28,172.39,172.36,5.43335136]
[1754006129551,3.28,172.39,172.36,11.23555136]
[1754006129754,3.28,172.38,172.36,5.43335136]
[1754006130357,3.28,172.38,172.37,5.8018]
[1754006134553,5.8009,172.41,172.38,5.8017]
[1754006134758,5.43335136,172.46,172.4,5.43335136]
[1754006134759,3.28,172.46,172.4,5.43335136]
[1754006134960,3.28,172.44,172.4,5.43335136]
[1754006135162,3.28,172.48,172.42,5.43335136]
[1754006135361,3.28,172.46,172.42,5.43335136]
[1754006135764,3.28,172.45,172.42,11.23345136]
[1754006136353,5.7995,172.45,172.42,11.23345136]
[1754006136661,3.28,172.44,172.43,5.8]
[1754006136962,3.28,172.44,172.34,108.7]
[1754006137151,3.28,172.44,172.37,5.43335136]
[1754006137656,3.28,172.41,172.37,5.43335136]
[1754006138067,3.28,172.45,172.37,5.8019]
[1754006138362,5.43335136,172.46,172.37,5.8019]
[1754006138363,3.28,172.43,172.37,5.8019]
[1754006138566,3.28,172.39,172.35,5.43335136]
[1754006138861,3.28,172.39,172.38,5.8017]
[1754006140958,3.28,172.39,172.37,5.8019]
[1754006141157,3.28,172.39,172.36,3.66550264]
[1754006141353,3.28,172.39,172.34,3.66550264]
[1754006141962,3.28,172.39,172.36,3.66550264]
[1754006142165,3.28,172.38,172.37,5.802]
[1754006142563,3.28,172.37,172.36,3.66550264]
[1754006143166,4.76567,172.47,172.36,3.66550264]
[1754006143167,3.28,172.44,172.36,3.66550264]
[1754006143360,3.28,172.42,172.41,3.66550264]
[1754006143659,5.7993,172.46,172.42,5.8001]
[1754006143861,4.1055112,172.45,172.41,3.66550264]
[1754006144064,3.28,172.42,172.41,3.66550264]
[1754006144259,3.28,172.44,172.43,5.8]
[1754006144458,3.28,172.45,172.43,3.66550264]
[1754006144761,5.7982,172.49,172.45,5.7991]
[1754006144958,3.28,172.45,172.44,5.42454138]
[1754006145360,3.28,172.45,172.44,5.7997]
[1754006145758,3.28,172.49,172.43,5.42454138]
[1754006145962,3.28,172.49,172.48,5.7983]
[1754006146468,7.38519775,172.49,172.48,5.7983]
[1754006146660,3.28,172.49,172.48,5.7983]
[1754006147063,3.28,172.49,172.47,5.42454138]
[1754006147258,3.28,172.53,172.45,5.42454138]
[1754006147564,3.28,172.51,172.45,5.42454138]
[1754006147768,3.28,172.5,172.47,5.7986]
[1754006148168,3.28,172.5,172.45,5.42454138]
[1754006148169,5.7977,172.5,172.46,5.7989]
[1754006148369,3.28,172.48,172.38,389.88]
[1754006148569,3.28,172.48,172.43,5.42454138]
[1754006148759,3.28,172.47,172.44,5.7994]
[1754006148964,3.28,172.47,172.41,5.42454138]
[1754006149167,3.28,172.49,172.45,5.799]
[1754006149668,3.28,172.49,172.43,5.42454138]
[1754006149865,3.28,172.49,172.41,5.42454138]
[1754006150264,3.28,172.49,172.42,5.8001]
[1754006150666,3.28,172.49,172.41,5.42454138]
[1754006152066,3.28,172.46,172.41,5.42454138]
[1754006152263,3.28,172.45,172.41,5.42454138]
[1754006152868,3.28,172.52,172.41,5.42454138]
[1754006153372,3.28,172.46,172.41,5.42454138]
[1754006153875,3.28,172.46,172.44,5.7995]
[1754006154176,3.28,172.47,172.41,5.42454138]
[1754006155272,3.28,172.47,172.44,5.7996]
[1754006156377,3.28,172.46,172.43,5.8]
[1754006156777,3.28,172.45,172.41,5.42454138]
[1754006157278,3.28,172.47,172.41,5.42454138]
[1754006157975,3.28,172.46,172.43,5.7998]
[1754006159180,3.03,172.45,172.44,5.7996]
[1754006159378,115.00523255,172.56,172.44,5.7996]
[1754006159379,4.76567,172.55,172.44,114.00454138]
[1754006159581,4.10870875,172.54,172.47,5.42454138]
[1754006159783,3.03,172.52,172.5,5.42454138]
[1754006159978,10.19021138,172.61,172.5,5.42454138]
[1754006160186,3.03,172.56,172.5,5.42454138]
[1754006160486,8.45454138,172.6,172.5,5.42454138]
[1754006160679,5.7957,172.56,172.52,5.7967]
[1754006160881,3.03,172.55,172.5,5.42454138]
[1754006161080,3.03,172.54,172.5,5.42454138]
[1754006161282,5.42454138,172.6,172.44,149.58]
[1754006161283,3.03,172.57,172.46,108.56]
[1754006161481,3.03,172.55,172.47,5.42454138]
[1754006161683,3.03,172.53,172.47,5.42454138]
[1754006161879,3.03,172.51,172.47,5.42454138]
[1754006162080,3.03,172.51,172.46,108.56]
[1754006162482,3.03,172.51,172.43,5.42454138]
[1754006162781,5.42454138,172.52,172.44,5.7995]
[1754006162982,7.1242303,172.51,172.42,113.98454138]
[1754006163182,3.03,172.5,172.42,113.98454138]
[1754006163882,3.03,172.5,172.45,5.7991]
[1754006164080,3.03,172.51,172.45,5.7991]
[1754006164379,5.7976,172.5,172.47,5.7984]
[1754006164583,3.03,172.49,172.44,5.42454138]
[1754006166191,3.03,172.53,172.44,5.42454138]
[1754006166390,3.03,172.51,172.44,5.42454138]
[1754006166889,3.03,172.51,172.45,3.66207867]
[1754006167183,3.03,172.48,172.46,5.7987]
[1754006167380,3.03,172.47,172.46,5.7987]
[1754006167785,3.03,172.51,172.45,3.66207867]
[1754006167983,3.03,172.51,172.5,3.66207867]
[1754006168182,3.03,172.51,172.5,9.45967867]
[1754006168779,3.03,172.51,172.5,5.7976]
[1754006169390,3.03,172.52,172.5,5.7976]
[1754006169587,3.03,172.54,172.5,5.42234496]
[1754006169782,3.03,172.53,172.5,5.42234496]
[1754006169985,3.03,172.53,172.51,5.797]
[1754006170184,3.03,172.55,172.5,5.42234496]
[1754006170390,3.03,172.55,172.42,41.0]
[1754006170391,3.03,172.64,172.54,5.42234496]
[1754006170588,3.03,172.62,172.54,5.42234496]
[1754006170888,3.03,172.62,172.56,5.42234496]
[1754006171286,3.03,172.62,172.58,5.7949]
[1754006171991,5.7938,172.62,172.57,5.7952]
[1754006172184,3.03,172.59,172.57,5.7952]
[1754006172388,3.03,172.59,172.56,5.42234496]
[1754006172687,3.03,172.66,172.58,5.42234496]
[1754006172878,3.03,172.64,172.58,5.42234496]
[1754006173280,5.7932,172.63,172.5,113.94234496]
[1754006173485,3.03,172.61,172.57,5.42234496]
[1754006173885,3.03,172.64,172.59,5.42234496]
[1754006174092,3.03,172.64,172.59,11.21674496]
[1754006174388,3.03,172.65,172.59,11.21674496]
[1754006174590,3.03,172.69,172.61,5.42234496]
[1754006174790,4.03272121,172.68,172.61,5.42234496]
[1754006174993,3.03,172.65,172.61,5.42234496]
[1754006175584,8.8225,172.65,172.61,5.42234496]
[1754006175793,3.03,172.64,172.61,5.42234496]
[1754006175993,389.78,172.7,172.61,5.42234496]
[1754006176189,3.03,172.63,172.61,5.42234496]
[1754006176396,3.03,172.62,172.61,5.42234496]
[1754006176795,3.03,172.62,172.5,503.58234496]
[1754006176796,3.03,172.6,172.5,395.06234496]
[1754006176991,3.03,172.6,172.56,5.42234496]
[1754006177494,3.03,172.58,172.56,5.42234496]
[1754006177693,3.03,172.62,172.56,5.42234496]
[1754006177892,3.03,172.62,172.58,5.42234496]
[1754006178093,3.03,172.67,172.58,5.42234496]
[1754006178295,3.03,172.65,172.58,5.42234496]
[1754006178494,3.03,172.65,172.51,108.48]
[1754006178495,3.03,172.65,172.56,5.42234496]
[1754006178691,5.7944,172.6,172.56,5.42234496]
[1754006178898,3.03,172.63,172.54,5.42234496]
[1754006179298,5.7948,172.58,172.54,11.21844496]
[1754006179497,3.03,172.56,172.54,5.42234496]
[1754006179796,3.03,172.57,172.56,5.7955]
[1754006179997,3.03,172.57,172.56,5.42234496]
[1754006180790,3.03,172.62,172.54,5.42234496]
[1754006180991,3.03,172.56,172.52,5.42234496]
[1754006181496,3.03,172.55,172.5,389.64]
[1754006181699,3.03,172.55,172.49,5.42234496]
[1754006182297,5.42234496,172.61,172.51,5.42234496]
[1754006182602,3.03,172.59,172.51,5.42234496]
[1754006183000,3.03,172.58,172.49,5.42234496]
[1754006183192,5.42234496,172.57,172.47,113.86234496]
[1754006183397,3.03,172.51,172.47,113.86234496]
[1754006183794,3.03,172.5,172.47,119.66084496]
[1754006183999,3.03,172.49,172.47,113.86234496]
[1754006184197,5.7972,172.51,172.47,113.86234496]
[1754006184396,3.03,172.48,172.47,113.86234496]
[1754006184903,3.03,172.48,172.47,5.42234496]
[1754006186607,3.03,172.48,172.47,11.22084496]
[1754006186995,3.03,172.51,172.47,11.22084496]
[1754006187198,3.03,172.5,172.47,5.42234496]
[1754006187804,3.03,172.5,172.47,11.22084496]
[1754006188098,3.03,172.57,172.49,5.42234496]
[1754006188808,3.27,172.5,172.47,3.66119146]
[1754006188994,5.7974,172.51,172.47,3.66119146]
[1754006188995,3.27,172.49,172.47,3.66119146]
[1754006189399,3.27,172.56,172.47,3.66119146]
[1754006189605,3.27,172.56,172.5,3.66119146]
[1754006189999,3.27,172.58,172.5,3.66119146]
[1754006190198,4.08840984,172.57,172.5,3.66119146]
[1754006190399,3.27,172.56,172.5,3.66119146]
[1754006190804,3.27,172.55,172.5,3.66119146]
[1754006191002,3.27,172.58,172.5,3.66119146]
[1754006191304,3.27,172.58,172.52,3.66119146]
[1754006192005,3.27,172.56,172.53,5.7965]
[1754006193005,3.66119146,172.61,172.54,5.7961]
[1754006193311,3.66119146,172.61,172.52,3.66119146]
[1754006193312,3.27,172.55,172.52,3.66119146]
[1754006193700,3.27,172.55,172.54,5.7962]
[1754006193899,3.27,172.55,172.52,3.66119146]
[1754006194602,3.27,172.55,172.53,5.7965]
[1754006195208,3.27,172.57,172.54,9.45729146]
[1754006195407,3.27,172.56,172.54,3.66119146]
[1754006195606,3.27,172.56,172.54,9.45709146]
[1754006195804,3.27,172.56,172.54,3.66119146]
[1754006196109,3.27,172.64,172.54,3.66119146]
[1754006196308,3.27,172.62,172.57,3.66119146]
[1754006197103,5.794,172.61,172.57,3.66119146]
[1754006197304,3.27,172.64,172.55,3.66119146]
[1754006197604,5.7947,172.59,172.55,3.66119146]
[1754006197806,3.27,172.58,172.55,3.66119146]
[1754006199009,3.27,172.64,172.55,3.66119146]
[1754006199200,3.66119146,172.65,172.55,3.66119146]
[1754006199201,3.27,172.62,172.55,3.66119146]
[1754006199402,4.06399443,172.63,172.5,108.44]
[1754006199403,5.7941,172.61,172.57,3.66119146]
[1754006199608,3.27,172.58,172.57,3.66119146]
[1754006199800,5.7942,172.6,172.5,108.44]
[1754006200004,3.27,172.59,172.53,3.66119146]
[1754006200607,5.7951,172.57,172.53,9.45749146]
[1754006200805,3.27,172.56,172.53,9.45749146]
[1754006200999,3.27,172.56,172.55,3.66119146]
[1754006201509,3.27,172.58,172.55,3.66119146]
[1754006201709,3.27,172.58,172.57,3.66119146]
[1754006202211,3.27,172.59,172.57,3.66119146]
[1754006202416,20.01066146,172.67,172.57,9.45629146]
[1754006202613,3.27,172.65,172.57,3.66119146]
[1754006202911,3.27,172.63,172.57,3.66119146]
[1754006203214,3.27,172.59,172.57,3.66119146]
[1754006203413,3.27,172.66,172.57,3.66119146]
[1754006203613,3.27,172.64,172.57,3.66119146]
[1754006203814,3.27,172.62,172.57,3.66119146]
[1754006204115,5.794,172.61,172.57,9.45609146]
[1754006204315,3.27,172.59,172.57,9.45609146]
[1754006205016,5.794,172.61,172.5,108.44]
[1754006205017,3.27,172.64,172.56,3.66119146]
[1754006205210,3.27,172.62,172.56,3.66119146]
[1754006205409,5.795,172.58,172.56,3.66119146]
[1754006205610,3.27,172.57,172.54,3.66119146]
[1754006205912,3.27,172.56,172.54,3.66119146]
[1754006206510,3.27,172.55,172.54,3.66119146]
[1754006206711,3.27,172.55,172.54,9.45719146]
[1754006207715,5.795,172.58,172.54,9.45719146]
[1754006208217,3.27,172.62,172.54,3.66119146]
[1754006208512,3.27,172.6,172.54,3.66119146]
[1754006208816,3.27,172.55,172.54,3.66119146]
[1754006209109,5.7953,172.57,172.54,3.66119146]
[1754006209304,3.27,172.56,172.54,3.66119146]
[1754006209510,3.27,172.55,172.54,3.66119146]
[1754006210213,9.0656,172.56,172.5,108.44]
[1754006210407,3.27,172.53,172.52,3.66119146]
[1754006211814,3.27,172.53,172.52,9.45799146]
[1754006212817,3.27,172.56,172.53,5.7962]
[1754006213006,3.27,172.55,172.54,3.66119146]
[1754006213311,5.7952,172.57,172.54,3.66119146]
[1754006213617,3.27,172.56,172.54,3.66119146]
[1754006213816,3.27,172.55,172.54,3.66119146]
[1754006214513,3.27,172.55,172.52,9.45789146]
[1754006214712,3.27,172.55,172.52,3.66119146]
[1754006214914,5.7959,172.55,172.52,3.66119146]
[1754006215115,3.27,172.54,172.52,3.66119146]
[1754006215912,3.27,172.53,172.52,3.66119146]
[1754006217319,5.7959,172.55,172.52,3.66119146]
[1754006217523,3.66119146,172.59,172.52,3.66119146]
[1754006217822,3.27,172.57,172.52,3.66119146]
[1754006218022,5.796,172.55,172.52,3.66119146]
[1754006218216,3.27,172.54,172.52,3.66119146]
[1754006218822,3.27,172.54,172.5,3.66119146]
[1754006219321,9.0663,172.54,172.5,9.45839146]
[1754006219519,8.8463,172.54,172.5,3.66119146]
[1754006219723,3.05,172.52,172.5,3.66119146]
[1754006219923,3.05,172.52,172.51,5.7969]
[1754006220423,3.05,172.52,172.5,3.66119146]
[1754006220723,3.05,172.52,172.5,9.45829146]
[1754006220919,3.05,172.52,172.5,3.66119146]
[1754006221318,4.80348463,172.61,172.5,3.66119146]